bitfinex/quotes_BTCUSD_20240611
["timestamp","ask_amount","ask_price","bid_price","bid_amount"]
[1718113779801,0.149572,66857.0,66856.0,0.262516]
[1718113780233,0.149572,66857.0,66856.0,0.259516]
[1718113780450,0.149572,66857.0,66856.0,0.39469668]
[1718113780661,0.149572,66857.0,66856.0,0.41469668]
[1718113780903,0.123,66866.0,66862.0,0.2]
[1718113781149,0.123,66866.0,66861.0,0.02]
[1718113781150,0.149561,66862.0,66861.0,0.2]
[1718113781365,0.149561,66862.0,66861.0,0.15517549]
[1718113781831,0.149564,66861.0,66860.0,0.1]
[1718113782063,0.149564,66861.0,66860.0,0.25517403]
[1718113783197,0.157564,66861.0,66860.0,0.25517403]
[1718113783646,0.157564,66861.0,66860.0,0.47762395]
[1718113783894,0.157564,66861.0,66860.0,0.45517403]
[1718113784401,0.157564,66861.0,66860.0,0.45617403]
[1718113784640,0.166564,66861.0,66860.0,0.45617403]
[1718113784872,0.166564,66861.0,66860.0,0.15617403]
[1718113785540,0.189564,66861.0,66860.0,0.15617403]
[1718113786299,0.017,66861.0,66860.0,0.64611136]
[1718113786540,0.2,66883.0,66860.0,0.64611136]
[1718113786541,0.149533,66875.0,66874.0,0.01]
[1718113786769,0.149533,66875.0,66874.0,0.32]
[1718113787675,0.149543,66870.0,66869.0,0.1]
[1718113787899,0.149543,66870.0,66869.0,0.352]
[1718113788362,0.18994103,66888.0,66883.0,0.2]
[1718113788578,0.149505,66887.0,66886.0,0.29215996]
[1718113788790,0.149505,66887.0,66886.0,0.22]
[1718113789561,0.149505,66887.0,66886.0,0.27959]
[1718113789757,0.1,66887.0,66878.0,0.1]
[1718113789957,0.149521,66880.0,66879.0,0.50223296]
[1718113790388,0.1,66887.0,66872.0,0.22]
[1718113790389,0.149537,66873.0,66872.0,0.22]
[1718113790672,0.1546,66882.0,66867.0,0.2]
[1718113790879,0.1546,66882.0,66866.0,0.12018002]
[1718113790880,0.14955,66867.0,66866.0,0.00018002]
[1718113791253,0.27255,66867.0,66866.0,0.00018002]
[1718113792015,0.997851,66867.0,66866.0,0.00018002]
[1718113792220,0.69875,66867.0,66866.0,0.00018002]
[1718113792878,1.14217093,66867.0,66866.0,0.00018002]
[1718113793630,1.14217093,66867.0,66866.0,0.00318002]
[1718113794076,0.27255,66867.0,66866.0,0.00318002]
[1718113794347,0.28455,66867.0,66866.0,0.00418002]
[1718113794521,0.28455,66867.0,66866.0,0.00018002]
[1718113794522,0.27255,66867.0,66866.0,0.00018002]
[1718113794831,0.28555,66867.0,66866.0,0.00018002]
[1718113795055,0.29655,66867.0,66866.0,0.00118002]
[1718113796151,0.28355,66867.0,66866.0,0.00118002]
[1718113796366,0.28355,66867.0,66866.0,0.00018002]
[1718113796367,0.28555,66867.0,66866.0,0.00018002]
[1718113796565,0.28555,66867.0,66866.0,0.00118002]
[1718113796782,0.29755,66867.0,66866.0,0.00118002]
[1718113796990,0.27255,66867.0,66866.0,0.00018002]
[1718113797202,0.41686993,66867.0,66866.0,0.00018002]
[1718113797417,0.44186993,66867.0,66866.0,0.00118002]
[1718113797637,0.42986993,66867.0,66866.0,0.00018002]
[1718113797841,0.41686993,66867.0,66866.0,0.00018002]
[1718113798045,0.42886993,66867.0,66866.0,0.00118002]
[1718113798263,0.44186993,66867.0,66866.0,0.00118002]
[1718113798710,1.70431296,66867.0,66866.0,0.00118002]
[1718113798923,1.71526026,66867.0,66866.0,0.00118002]
[1718113799131,1.81526026,66867.0,66866.0,0.00118002]
[1718113799341,3.84796926,66867.0,66866.0,0.00118002]
[1718113799577,3.84796926,66867.0,66866.0,2e-08]
[1718113799578,4.43792696,66867.0,66866.0,2e-08]
[1718113799797,4.43792696,66867.0,66856.0,0.00086]
[1718113799798,1.127862,66857.0,66856.0,0.00086]
[1718113800006,1.85467458,66857.0,66856.0,0.00086]
[1718113800421,2.15381958,66857.0,66856.0,0.00086]
[1718113800637,0.149635,66829.0,66828.0,0.02245189]
[1718113800889,0.149635,66829.0,66822.0,0.1]
[1718113800890,0.149642,66826.0,66825.0,0.02245189]
[1718113801111,0.149642,66826.0,66823.0,0.43295979]
[1718113801112,0.3986,66839.0,66828.0,0.2]
[1718113801329,0.3986,66839.0,66823.0,0.2]
[1718113801330,0.27236245,66838.0,66823.0,0.2]
[1718113801545,0.27236245,66838.0,66822.0,0.12]
[1718113801546,0.149649,66823.0,66822.0,0.12245189]
[1718113801768,0.149649,66823.0,66822.0,0.1]
[1718113801977,0.26731993,66838.0,66818.0,0.2]
[1718113801978,0.2,66830.0,66818.0,0.2]
[1718113802215,0.149658,66819.0,66818.0,0.2]
[1718113802474,0.172658,66819.0,66818.0,0.2]
[1718113802682,0.172658,66819.0,66809.0,0.07215996]
[1718113802683,0.323,66819.0,66815.0,0.2]
[1718113802897,0.123,66818.0,66812.0,0.1]
[1718113803105,0.123,66818.0,66813.0,0.2]
[1718113803327,0.123,66818.0,66817.0,0.22]
[1718113803541,0.123,66818.0,66812.0,0.3]
[1718113803756,0.149671,66813.0,66812.0,0.1]
[1718113804172,0.149671,66813.0,66812.0,0.32]
[1718113804395,0.101,66818.0,66817.0,0.32]
[1718113804687,0.001,66818.0,66817.0,0.46431993]
[1718113804872,0.600422,66840.0,66817.0,0.46431993]
[1718113804873,0.149611,66840.0,66839.0,0.22]
[1718113805097,0.149611,66840.0,66839.0,0.32]
[1718113805313,0.149611,66840.0,66839.0,0.3661]
[1718113805532,0.149611,66840.0,66839.0,0.22]
[1718113805968,0.18994103,66851.0,66850.0,0.22]
[1718113806179,0.33952703,66851.0,66850.0,0.22]
[1718113806628,0.18994103,66851.0,66850.0,0.22]
[1718113806859,0.149586,66851.0,66850.0,0.342]
[1718113807070,0.4718,66854.0,66853.0,0.32]
[1718113807283,0.059845,66868.0,66861.0,0.32]
[1718113807284,0.149561,66862.0,66861.0,0.32]
[1718113808214,0.149548,66869.0,66867.0,0.32]
[1718113808510,0.18994103,66873.0,66872.0,0.32]
[1718113808741,0.18994103,66873.0,66872.0,0.2432]
[1718113809001,0.18994103,66873.0,66872.0,0.4632]
[1718113809206,0.18994103,66873.0,66859.0,0.01]
[1718113809207,0.149539,66872.0,66871.0,0.2]
[1718113809889,0.18994103,66873.0,66865.0,0.2]
[1718113810107,0.149566,66860.0,66859.0,0.2]
[1718113810370,0.149575,66856.0,66855.0,0.2]
[1718113810600,0.002,66862.0,66857.0,0.2]
[1718113810832,0.299104,66867.0,66855.0,0.2]
[1718113811067,0.12804252,66866.0,66857.0,0.2]
[1718113811280,0.149559,66863.0,66862.0,0.22]
[1718113811500,0.249559,66863.0,66862.0,0.22]
[1718113811716,0.249559,66863.0,66862.0,0.32]
[1718113812174,0.249559,66863.0,66862.0,0.22]
[1718113812439,0.249559,66863.0,66858.0,0.2]
[1718113812440,0.149568,66859.0,66858.0,0.2]
[1718113812669,0.249559,66863.0,66862.0,0.39215996]
[1718113812884,0.149559,66863.0,66862.0,0.39215996]
[1718113813106,0.249559,66863.0,66862.0,0.39215996]
[1718113813319,0.249559,66863.0,66862.0,0.32]
[1718113813771,0.252559,66863.0,66862.0,0.32]
[1718113813983,0.258559,66863.0,66862.0,0.32]
[1718113814201,0.258559,66863.0,66862.0,0.3552]
[1718113814410,0.249559,66863.0,66862.0,0.3552]
[1718113814850,0.258559,66863.0,66862.0,0.3552]
[1718113815055,0.255559,66863.0,66862.0,0.32]
[1718113815505,0.255559,66863.0,66862.0,0.22]
[1718113815728,0.149561,66862.0,66861.0,0.32]
[1718113815939,0.106,66863.0,66859.0,0.1]
[1718113816176,0.18994103,66873.0,66859.0,0.1]
[1718113816177,0.149566,66860.0,66859.0,0.1]
[1718113816809,0.123,66860.0,66855.0,0.1]
[1718113817018,0.149579,66854.0,66853.0,0.3]
[1718113817879,0.149579,66854.0,66853.0,0.36614]
[1718113818098,0.149579,66854.0,66853.0,0.51045993]
[1718113818746,0.1,66859.0,66858.0,0.32]
[1718113818960,0.151566,66860.0,66859.0,0.32]
[1718113819177,0.149566,66860.0,66859.0,0.32]
[1718113820289,0.149566,66860.0,66859.0,0.46431993]
[1718113820539,0.149566,66860.0,66859.0,0.51507222]
[1718113820540,0.002,66860.0,66859.0,0.51507222]
[1718113820762,0.002,66860.0,66859.0,0.79697222]
[1718113820976,0.149557,66864.0,66863.0,0.32]
[1718113821195,0.149557,66864.0,66863.0,0.5819]
[1718113821445,0.149557,66864.0,66863.0,0.6019]
[1718113821655,0.33947803,66873.0,66872.0,0.32]
[1718113821896,0.149537,66873.0,66872.0,0.49631993]
[1718113822813,0.150483,66873.0,66872.0,0.49631993]
[1718113823451,0.008946,66873.0,66872.0,0.49631993]
[1718113823873,0.001946,66873.0,66872.0,0.80721993]
[1718113824112,0.149506,66887.0,66886.0,0.32]
[1718113824339,0.149506,66887.0,66886.0,0.49731993]
[1718113824968,0.448404,66904.0,66903.0,0.22]
[1718113825190,0.149467,66904.0,66903.0,0.32]
[1718113825584,0.059809,66905.0,66901.0,0.3]
[1718113825840,0.14947,66903.0,66902.0,0.32]
[1718113826644,0.14713202,66902.0,66901.0,0.3]
[1718113826848,0.14713202,66902.0,66901.0,0.32]
[1718113827482,0.15381772,66902.0,66901.0,0.32]
[1718113828220,0.15981772,66902.0,66901.0,0.352]
[1718113828430,0.15981772,66902.0,66901.0,0.1]
[1718113828859,0.15981772,66902.0,66901.0,0.3]
[1718113829073,0.15981772,66902.0,66901.0,0.32]
[1718113829549,0.15381772,66902.0,66901.0,0.32]
[1718113829788,0.15251057,66902.0,66901.0,0.32]
[1718113830015,0.15851057,66902.0,66901.0,0.321]
[1718113830234,0.15251057,66902.0,66901.0,0.32]
[1718113830482,0.16151057,66902.0,66901.0,0.322]
[1718113830722,0.16751057,66902.0,66901.0,0.322]
[1718113830934,0.15251057,66902.0,66901.0,0.32]
[1718113831381,0.46935022,66902.0,66901.0,0.002]
[1718113831611,0.56935022,66902.0,66901.0,0.002]
[1718113831818,0.59235022,66902.0,66901.0,0.002]
[1718113832497,0.58335022,66902.0,66901.0,0.001]
[1718113832706,0.448429,66900.0,66899.0,0.2]
[1718113832918,0.272476,66900.0,66899.0,0.22]
[1718113833367,0.25905736,66900.0,66899.0,0.50353593]
[1718113833586,0.00958136,66900.0,66899.0,0.50353593]
[1718113833802,0.00958136,66900.0,66899.0,0.92203593]
[1718113834016,0.059802,66911.0,66910.0,0.32]
[1718113834264,0.149452,66911.0,66910.0,0.352]
[1718113834476,0.149452,66911.0,66910.0,0.252]
[1718113834711,0.15807522,66911.0,66910.0,0.32]
[1718113835615,0.18107522,66911.0,66910.0,0.32]
[1718113836253,0.15807522,66911.0,66910.0,0.32]
[1718113836683,0.17007522,66911.0,66910.0,0.321]
[1718113836903,0.17007522,66911.0,66910.0,0.3531]
[1718113837366,0.00969252,66911.0,66910.0,0.50841993]
[1718113837598,0.00969252,66911.0,66910.0,0.49841993]
[1718113838745,0.16896231,66911.0,66910.0,0.322]
[1718113838983,0.16826979,66911.0,66910.0,0.001]
[1718113839200,0.16826979,66911.0,66910.0,0.002]
[1718113839436,0.48117379,66911.0,66910.0,0.001]
[1718113839673,0.471356,66911.0,66910.0,0.001]
[1718113839892,0.19026979,66911.0,66910.0,0.222]
[1718113840105,0.58917379,66911.0,66910.0,0.002]
[1718113842287,0.29026979,66911.0,66910.0,0.07415996]
[1718113842509,0.26726979,66911.0,66910.0,0.41635996]
[1718113842723,0.16726979,66911.0,66910.0,0.41635996]
[1718113842952,0.01781779,66911.0,66910.0,0.98957989]
[1718113843443,0.008,66911.0,66910.0,0.99957989]
[1718113844541,0.008,66911.0,66910.0,0.98957989]
[1718113844978,0.008,66911.0,66910.0,0.2442]
[1718113845192,0.157452,66911.0,66910.0,0.321]
[1718113845408,0.008,66911.0,66910.0,0.46531993]
[1718113845619,0.01781779,66911.0,66910.0,0.46531993]
[1718113845834,0.1,66922.0,66921.0,0.2]
[1718113846057,0.123,66922.0,66919.0,0.1]
[1718113846281,0.023,66921.0,66919.0,0.1]
[1718113846494,0.023,66921.0,66916.0,0.02]
[1718113846495,0.023,66921.0,66916.0,0.2]
[1718113846720,0.149438,66917.0,66916.0,0.2]
[1718113846975,0.149438,66917.0,66916.0,0.22]
[1718113846976,0.172438,66917.0,66916.0,0.22]
[1718113847196,0.149438,66917.0,66916.0,0.352]
[1718113847438,0.00940501,66934.0,66925.0,0.1]
[1718113847651,0.149418,66926.0,66925.0,0.54647989]
[1718113848082,0.209193,66931.0,66930.0,0.32]
[1718113848297,0.00940501,66934.0,66933.0,0.32]
[1718113848506,0.00940501,66934.0,66933.0,0.46431993]
[1718113848733,0.00940501,66934.0,66933.0,0.32]
[1718113848734,0.15880501,66934.0,66933.0,0.32]
[1718113849882,0.149405,66932.0,66931.0,0.2]
[1718113850110,0.172405,66932.0,66931.0,0.3]
[1718113850332,0.149405,66932.0,66931.0,0.352]
[1718113850823,0.149405,66932.0,66931.0,0.332]
[1718113851055,0.172405,66932.0,66931.0,0.32]
[1718113852021,0.149405,66932.0,66931.0,0.69682111]
[1718113852237,0.149405,66932.0,66931.0,0.69782111]
[1718113852453,0.149405,66932.0,66931.0,0.76760322]
[1718113852663,0.149405,66932.0,66931.0,0.77060322]
[1718113852877,0.149405,66932.0,66931.0,0.76660322]
[1718113853082,0.00940501,66934.0,66933.0,0.32]
[1718113853318,0.15880501,66934.0,66933.0,0.69682111]
[1718113853548,0.15880501,66934.0,66933.0,0.78119743]
[1718113854453,0.15880501,66934.0,66933.0,0.78219743]
[1718113856435,0.2881772,66987.0,66941.0,0.1441]
[1718113856663,0.04428623,66992.0,66991.0,0.2441]
[1718113856898,0.65571377,66992.0,66991.0,0.4741]
[1718113857128,0.65571377,66992.0,66991.0,0.80648117]
[1718113857347,0.65571377,66992.0,66991.0,0.43238117]
[1718113857568,0.65571377,66992.0,66991.0,0.23238117]
[1718113857995,0.65571377,66992.0,66988.0,0.1]
[1718113858221,0.65571377,66992.0,66989.0,0.1]
[1718113858633,0.65571377,66992.0,66990.0,0.2]
[1718113858844,0.4268,66990.0,66983.0,0.2]
[1718113859050,0.14928,66988.0,66983.0,0.2]
[1718113859256,0.14928,66988.0,66981.0,0.12]
[1718113859257,0.1,66987.0,66986.0,0.2]
[1718113859469,0.10995921,66987.0,66986.0,0.22]
[1718113859675,0.13295921,66987.0,66986.0,0.2]
[1718113859850,0.13295921,66987.0,66984.0,0.2]
[1718113860093,0.023,66986.0,66983.0,0.3]
[1718113860303,0.023,66986.0,66985.0,0.22]
[1718113860516,0.023,66986.0,66983.0,0.3]
[1718113860726,0.00995921,66986.0,66983.0,0.3]
[1718113860934,0.023,66985.0,66983.0,0.3]
[1718113861150,0.03295921,66985.0,66983.0,0.1]
[1718113861371,0.03295921,66985.0,66964.0,0.01]
[1718113861372,0.03295921,66985.0,66976.0,0.1]
[1718113861585,0.00504252,66984.0,66972.0,0.1]
[1718113861811,0.1,66984.0,66972.0,0.1]
[1718113862023,0.1,66984.0,66958.0,0.2953]
[1718113862024,0.023,66983.0,66979.0,0.2]
[1718113862250,0.03295921,66983.0,66978.0,0.3]
[1718113862459,0.03295921,66983.0,66979.0,0.2]
[1718113862673,0.03295921,66983.0,66978.0,0.3]
[1718113862897,0.149307,66976.0,66973.0,0.1]
[1718113863113,0.149307,66976.0,66975.0,0.1]
[1718113863331,0.01039887,66975.0,66973.0,0.1]
[1718113863546,0.172307,66976.0,66973.0,0.1]
[1718113863547,0.023,66974.0,66973.0,0.1]
[1718113863995,0.2214,66984.0,66974.0,0.32]
[1718113863996,0.023,66975.0,66974.0,0.32]
[1718113864217,0.023,66975.0,66974.0,0.42]
[1718113864691,0.023,66975.0,66974.0,0.2]
[1718113864915,0.023,66978.0,66975.0,0.1]
[1718113865369,0.023,66978.0,66975.0,0.2]
[1718113865590,0.023,66978.0,66975.0,0.1]
[1718113865811,0.149304,66977.0,66975.0,0.1]
[1718113866023,0.172308,66976.0,66975.0,0.1]
[1718113866249,0.172308,66976.0,66975.0,0.3]
[1718113867133,0.172308,66976.0,66975.0,0.32]
[1718113867349,0.172308,66976.0,66975.0,0.3]
[1718113867565,0.172308,66976.0,66975.0,0.1]
[1718113867792,0.149316,66972.0,66971.0,0.1]
[1718113868003,0.149316,66972.0,66968.0,0.1]
[1718113868004,0.149321,66970.0,66968.0,0.1]
[1718113868215,0.023,66972.0,66967.0,0.1]
[1718113868216,0.172324,66969.0,66967.0,0.1]
[1718113868438,0.172324,66969.0,66952.0,0.36675996]
[1718113868439,0.00504252,66968.0,66958.0,0.2]
[1718113868654,0.149344,66960.0,66958.0,0.2]
[1718113868886,0.1,66968.0,66956.0,0.1]
[1718113868887,0.2444,66959.0,66956.0,0.1]
[1718113869110,0.149353,66956.0,66955.0,0.1]
[1718113869329,0.172353,66956.0,66955.0,0.1]
[1718113869547,0.172353,66956.0,66955.0,0.3]
[1718113870218,0.172353,66956.0,66955.0,0.42]
[1718113870446,0.172353,66956.0,66955.0,0.1]
[1718113870655,0.172353,66956.0,66955.0,0.001]
[1718113870877,0.14936,66952.0,66951.0,0.1]
[1718113871099,0.17236,66952.0,66951.0,0.1]
[1718113871335,0.17236,66952.0,66951.0,0.42]
[1718113871571,0.023,66952.0,66951.0,0.42]
[1718113871796,0.001,66956.0,66955.0,0.22]
[1718113871797,0.024,66956.0,66955.0,0.22]
[1718113872068,0.152351,66956.0,66955.0,0.32]
[1718113872359,0.152351,66956.0,66955.0,0.22]
[1718113872360,0.475951,66956.0,66955.0,0.22]
[1718113872589,0.475951,66956.0,66954.0,0.1]
[1718113872590,0.3236,66956.0,66954.0,0.1]
[1718113872801,0.172354,66955.0,66954.0,0.1]
[1718113873233,0.172354,66955.0,66954.0,0.3]
[1718113873452,0.023,66955.0,66954.0,0.1]
[1718113873692,0.149356,66954.0,66953.0,0.32]
[1718113873898,0.172356,66954.0,66953.0,0.32]
[1718113874353,0.18251972,66954.0,66953.0,0.3]
[1718113874602,0.03316372,66954.0,66951.0,0.1]
[1718113874834,0.03316372,66954.0,66943.0,0.3]
[1718113874835,0.023,66953.0,66943.0,0.3]
[1718113875065,0.37434252,66952.0,66943.0,0.1]
[1718113875277,0.37434252,66952.0,66941.0,0.1]
[1718113875278,0.2214,66945.0,66941.0,0.1]
[1718113875511,0.149383,66942.0,66941.0,0.1]
[1718113875738,0.149383,66942.0,66941.0,0.09992366]
[1718113875954,0.18254672,66942.0,66941.0,0.09992366]
[1718113876615,0.18254672,66942.0,66937.0,0.09992366]
[1718113876616,0.149385,66941.0,66937.0,0.09992366]
[1718113876841,0.2214,66938.0,66934.0,0.09992366]
[1718113877052,0.1494,66934.0,66933.0,0.19992366]
[1718113877485,0.1724,66934.0,66933.0,0.19992366]
[1718113877716,0.1824136,66934.0,66933.0,0.09992366]
[1718113878163,0.1824136,66934.0,66929.0,0.09992366]
[1718113878164,0.1330136,66934.0,66929.0,0.09992366]
[1718113878373,0.149412,66929.0,66928.0,0.19992366]
[1718113878826,0.172412,66929.0,66928.0,0.19992366]
[1718113879088,0.172412,66929.0,66925.0,0.09215996]
[1718113879089,0.0330136,66929.0,66925.0,0.07215996]
[1718113879339,0.149418,66926.0,66925.0,0.07215996]
[1718113879574,0.3172,66925.0,66918.0,0.07215996]
[1718113879790,0.149434,66919.0,66918.0,0.07215996]
[1718113879995,0.149434,66919.0,66915.0,0.1]
[1718113879996,0.023,66919.0,66915.0,0.1]
[1718113880219,0.023,66919.0,66912.0,0.2]
[1718113880220,0.023,66918.0,66913.0,0.09992366]
[1718113880437,0.02804252,66918.0,66911.0,0.00086]
[1718113880652,0.14945,66912.0,66911.0,0.00086]
[1718113880825,0.69275,66912.0,66911.0,0.00086]
[1718113881073,0.79275,66912.0,66911.0,0.00086]
[1718113881552,0.8027636,66912.0,66911.0,0.00086]
[1718113882250,0.1824636,66912.0,66911.0,0.42078366]
[1718113882463,0.0330136,66912.0,66911.0,0.95808196]
[1718113882887,0.035,66912.0,66911.0,0.95908196]
[1718113883075,0.047,66912.0,66911.0,0.96008196]
[1718113883314,0.023,66912.0,66911.0,0.95808196]
[1718113883542,0.172445,66914.0,66913.0,0.41992366]
[1718113883973,0.149416,66927.0,66926.0,0.32]
[1718113884653,0.2,66941.0,66937.0,0.22]
[1718113884654,0.149391,66938.0,66937.0,0.22]
[1718113885102,0.149391,66938.0,66937.0,0.32]
[1718113885354,0.149391,66938.0,66937.0,0.41992366]
[1718113886242,0.161391,66938.0,66937.0,0.42092366]
[1718113886451,0.164391,66938.0,66937.0,0.42092366]
[1718113886686,0.152391,66938.0,66937.0,0.41992366]
[1718113886904,0.154391,66938.0,66937.0,0.41992366]
[1718113887547,0.177391,66938.0,66937.0,0.41992366]
[1718113888394,0.172391,66938.0,66937.0,0.41992366]
[1718113888607,0.18236419,66938.0,66937.0,0.41992366]
[1718113888815,0.18236419,66938.0,66937.0,0.42692366]
[1718113889245,0.18236419,66938.0,66937.0,0.57124359]
[1718113889246,0.03305256,66938.0,66937.0,0.57124359]
[1718113889679,0.03305256,66938.0,66937.0,0.56824359]
[1718113889894,0.023,66938.0,66937.0,0.63328395]
[1718113890101,0.023,66938.0,66937.0,0.64228395]
[1718113890309,0.1,66947.0,66946.0,0.32]
[1718113890751,0.01005256,66947.0,66946.0,0.32]
[1718113890986,0.1592439,66947.0,66946.0,0.32]
[1718113891198,0.2592439,66947.0,66946.0,0.32]
[1718113891671,0.2822439,66947.0,66946.0,0.32]
[1718113892332,0.1822439,66947.0,66946.0,0.4949956]
[1718113892546,0.0328729,66947.0,66946.0,0.93311926]
[1718113892785,0.0398729,66947.0,66946.0,0.93411926]
[1718113892996,0.038,66947.0,66946.0,0.93411926]
[1718113893222,0.031,66947.0,66946.0,0.93411926]
[1718113893428,0.029,66947.0,66946.0,0.93411926]
[1718113894091,0.029,66947.0,66946.0,0.90344359]
[1718113894947,0.185371,66947.0,66946.0,0.40192366]
[1718113895190,0.185371,66947.0,66946.0,0.42192366]
[1718113895421,0.18333611,66947.0,66946.0,0.41992366]
[1718113895637,0.17330601,66947.0,66946.0,0.41992366]
[1718113895855,0.18433611,66947.0,66946.0,0.42892366]
[1718113896063,0.18433611,66947.0,66946.0,0.40892366]
[1718113896271,0.18333611,66947.0,66946.0,0.40292366]
[1718113896896,0.18333611,66947.0,66946.0,0.005]
[1718113897095,0.28333611,66947.0,66946.0,0.005]
[1718113897301,0.89637911,66947.0,66946.0,0.005]
[1718113897970,0.89637911,66947.0,66946.0,0.003]
[1718113898133,1.19512211,66947.0,66946.0,0.003]
[1718113898291,1.19512211,66947.0,66946.0,0.005]
[1718113898511,1.19512211,66947.0,66946.0,0.002]
[1718113898713,0.149391,66938.0,66937.0,0.09992366]
[1718113898909,0.149396,66936.0,66935.0,0.19992366]
[1718113899138,0.172396,66936.0,66935.0,0.19992366]
[1718113899342,0.03308372,66936.0,66932.0,0.1]
[1718113899540,0.149403,66933.0,66932.0,0.09992366]
[1718113899744,0.149405,66932.0,66931.0,0.1]
[1718113899944,0.18248872,66932.0,66931.0,0.1]
[1718113900147,0.18248872,66932.0,66931.0,0.3]
[1718113900386,0.18248872,66932.0,66931.0,0.39992366]
[1718113900600,0.18248872,66932.0,66931.0,0.41992366]
[1718113900969,0.15948872,66932.0,66931.0,0.60623596]
[1718113901353,0.15948872,66932.0,66931.0,0.41992366]
[1718113901785,0.01008372,66932.0,66931.0,0.56424359]
[1718113902046,0.01008372,66932.0,66931.0,0.41992366]
[1718113902187,0.174405,66932.0,66931.0,0.41992366]
[1718113902604,0.1843679,66932.0,66931.0,0.41992366]
[1718113903124,0.1823679,66932.0,66931.0,0.42392366]
[1718113903579,0.1843679,66932.0,66931.0,0.41992366]
[1718113903772,0.1843679,66932.0,66931.0,0.39992366]
[1718113904191,0.1893679,66932.0,66931.0,0.39992366]
[1718113904404,0.0399629,66932.0,66931.0,0.46191603]
[1718113904673,0.1893679,66932.0,66931.0,0.41992366]
[1718113904891,0.1873679,66932.0,66931.0,0.32]
[1718113905095,0.1873679,66932.0,66931.0,0.1]
[1718113905255,0.1913679,66932.0,66931.0,0.19992366]
[1718113905509,0.1863679,66932.0,66931.0,0.19992366]
[1718113905833,0.1863679,66932.0,66931.0,0.42392366]
[1718113906071,0.1863679,66932.0,66931.0,0.42592366]
[1718113906285,0.1823679,66932.0,66931.0,0.42392366]
[1718113906503,0.1823679,66932.0,66931.0,0.42592366]
[1718113906914,0.1823679,66932.0,66931.0,0.42192366]
[1718113908601,0.1823679,66932.0,66931.0,0.39992366]
[1718113908843,0.1843679,66932.0,66931.0,0.41992366]
[1718113909046,0.1843679,66932.0,66931.0,0.39992366]
[1718113909256,0.1853679,66932.0,66931.0,0.41992366]
[1718113909643,0.1843679,66932.0,66931.0,0.41992366]
[1718113909882,0.1843679,66932.0,66931.0,0.19992366]
[1718113910091,0.1873679,66932.0,66931.0,0.19992366]
[1718113910744,0.1843679,66932.0,66931.0,0.19992366]
[1718113911202,0.1823679,66932.0,66931.0,0.09992366]
[1718113911424,0.1843679,66932.0,66931.0,0.09992366]
[1718113912093,0.149409,66930.0,66929.0,0.19992366]
[1718113912308,0.172409,66930.0,66929.0,0.19992366]
[1718113912536,0.172409,66930.0,66929.0,0.41992366]
[1718113912757,0.18236386,66930.0,66929.0,0.41992366]
[1718113913626,0.18236386,66930.0,66929.0,0.43888939]
[1718113913998,0.18436386,66930.0,66929.0,0.43888939]
[1718113914824,0.18436386,66930.0,66929.0,0.41992366]
[1718113915027,0.18536386,66930.0,66929.0,0.41992366]
[1718113915404,0.18536386,66930.0,66929.0,0.19992366]
[1718113915622,0.18536386,66930.0,66919.0,0.24115996]
[1718113915623,0.149416,66927.0,66926.0,0.1]
[1718113915834,0.43477486,66930.0,66925.0,0.09992366]
[1718113915835,0.123,66929.0,66925.0,0.09992366]
[1718113916019,0.123,66929.0,66923.0,0.39992366]
[1718113916020,0.149423,66924.0,66923.0,0.39992366]
[1718113916188,0.172423,66924.0,66923.0,0.39992366]
[1718113916584,0.18237786,66924.0,66923.0,0.3]
[1718113917056,0.18237786,66924.0,66923.0,0.1]
[1718113917296,0.149425,66923.0,66922.0,0.1]
[1718113917508,0.172425,66923.0,66922.0,0.41992366]
[1718113917908,0.18237986,66923.0,66922.0,0.41992366]
[1718113918463,0.18337986,66923.0,66922.0,0.42692366]
[1718113918878,0.18337986,66923.0,66922.0,0.41992366]
[1718113918879,0.18237986,66923.0,66922.0,0.41992366]
[1718113919291,0.03395486,66923.0,66922.0,0.57124359]
[1718113919504,0.03395486,66923.0,66922.0,0.47131993]
[1718113919935,0.03395486,66923.0,66922.0,0.57624359]
[1718113920768,0.03295486,66923.0,66922.0,0.56924359]
[1718113920980,0.00995486,66923.0,66922.0,1.05734359]
[1718113921211,0.01095486,66923.0,66922.0,1.31950495]
[1718113921421,0.001,66923.0,66922.0,1.62450359]
[1718113921626,0.14938,66944.0,66942.0,0.1]
[1718113921838,0.14938,66944.0,66943.0,0.32]
[1718113922256,0.14938,66944.0,66943.0,0.41992366]
[1718113922688,0.00093501,66947.0,66946.0,0.41992366]
[1718113923939,0.00093501,66947.0,66946.0,0.56424359]
[1718113924416,0.00093501,66947.0,66946.0,0.57424359]
[1718113924901,0.00093501,66947.0,66946.0,0.72361759]
[1718113925126,0.00093501,66947.0,66946.0,0.72861759]
[1718113925361,0.00093501,66947.0,66946.0,0.70157135]
[1718113925574,0.00093501,66947.0,66946.0,0.69157135]
[1718113925801,0.00093501,66947.0,66946.0,0.68657135]
[1718113926059,0.00193501,66947.0,66946.0,0.69857135]
[1718113926519,0.00093501,66947.0,66946.0,0.56924359]
[1718113926747,0.00093501,66947.0,66946.0,0.57624359]
[1718113926969,0.00193501,66947.0,66946.0,0.57624359]
[1718113927187,0.00193501,66947.0,66946.0,0.57124359]
[1718113927436,0.00193501,66947.0,66946.0,0.66883395]
[1718113928709,0.00093501,66947.0,66946.0,0.66683395]
[1718113929155,0.00193501,66947.0,66946.0,0.66883395]
[1718113929372,0.00193501,66947.0,66946.0,0.57124359]
[1718113929589,0.00093501,66947.0,66946.0,0.42492366]
[1718113929834,0.00193501,66947.0,66946.0,0.43192366]